bitfinex/quotes_SOLUSD_20250223
["timestamp","ask_amount","ask_price","bid_price","bid_amount"]
[1740302916587,0.03,171.57,171.56,38.40308655]
[1740302917976,0.03,171.57,171.56,138.95273541]
[1740302919378,0.03,171.57,171.56,142.88853563]
[1740302921771,0.03,171.58,171.57,19.64964886]
[1740302922076,0.03,171.58,171.57,31.22393541]
[1740302922273,0.03,171.58,171.57,32.22393541]
[1740302922597,0.03,171.58,171.57,344.22393541]
[1740302923978,0.03,171.58,171.57,350.05243541]
[1740302927089,0.03,171.58,171.57,38.05243541]
[1740302927591,0.03,171.58,171.57,18.40278655]
[1740302927904,0.03,171.58,171.57,100.30278655]
[1740302928202,0.03,171.58,171.57,99.30278655]
[1740302928394,0.03,171.58,171.57,100.30278655]
[1740302929176,0.03,171.58,171.57,119.95243541]
[1740302930112,0.03,171.58,171.57,431.95243541]
[1740302932030,0.03,171.58,171.57,430.95243541]
[1740302933113,0.03,171.58,171.57,119.95243541]
[1740302935927,0.03,171.58,171.57,118.95243541]
[1740302936222,0.03,171.58,171.57,431.95243541]
[1740302938922,0.03,171.58,171.57,449.48243541]
[1740302939110,0.03,171.58,171.57,119.95243541]
[1740302941514,0.03,171.58,171.57,118.95243541]
[1740302941817,0.03,171.58,171.57,119.95243541]
[1740302942117,0.03,171.58,171.57,432.01543541]
[1740302942529,0.03,171.58,171.57,120.01543541]
[1740302945629,0.03,171.58,171.57,432.01543541]
[1740302947013,0.03,171.58,171.57,120.01543541]
[1740302949935,0.03,171.58,171.57,432.01543541]
[1740302950435,0.03,171.58,171.57,431.01543541]
[1740302950621,0.03,171.58,171.57,87.7915]
[1740302951501,0.03,171.58,171.57,5.8915]
[1740302951726,0.03,171.58,171.57,0.063]
[1740302952318,11.60428655,171.58,171.57,0.063]
[1740302957830,17.43238655,171.58,171.57,0.063]
[1740302958028,11.60428655,171.58,171.57,0.063]
[1740302969650,92.60428655,171.58,171.57,0.063]
[1740302976433,98.43238655,171.58,171.57,0.063]
[1740302981357,17.43238655,171.58,171.57,0.063]
[1740302988481,11.60428655,171.58,171.57,0.063]
[1740303010361,0.03,171.58,171.57,0.063]
[1740303010554,11.60428655,171.58,171.57,0.063]
[1740303010756,0.03,171.58,171.57,0.063]
[1740303016667,11.60428655,171.58,171.57,0.063]
[1740303023480,0.03,171.58,171.57,0.063]
[1740303023681,11.60428655,171.58,171.57,0.063]
[1740303035878,0.03,171.58,171.57,0.063]
[1740303040803,11.60428655,171.58,171.57,0.063]
[1740303046591,0.03,171.58,171.57,0.063]
[1740303066422,11.60428655,171.58,171.57,0.063]
[1740303067225,0.03,171.58,171.57,0.063]
[1740303075918,11.60428655,171.58,171.57,0.063]
[1740303082442,92.60428655,171.58,171.57,0.063]
[1740303087842,81.03,171.58,171.57,0.063]
[1740303088232,0.03,171.58,171.57,0.063]
[1740303091457,11.60428655,171.58,171.57,0.063]
[1740303128302,0.03,171.58,171.57,0.063]
[1740303132416,11.60428655,171.58,171.57,0.063]
[1740303162336,17.43238655,171.58,171.57,0.063]
[1740303182541,36.08203541,171.58,171.57,0.063]
[1740303196441,40.38203541,171.58,171.57,0.063]
[1740303202280,54.60170824,171.58,171.57,0.063]
[1740303203374,18.64964886,171.57,171.55,0.063]
[1740303203575,11.57428655,171.56,171.55,0.063]
[1740303204559,36.05273541,171.56,171.55,0.063]
[1740303205171,36.05273541,171.56,171.5,0.063]
[1740303205172,19.64964886,171.55,171.5,0.063]
[1740303205370,30.22393541,171.51,171.5,0.063]
[1740303205570,11.57428655,171.51,171.5,0.063]
[1740303205777,11.57428655,171.53,171.5,0.063]
[1740303206955,11.57428655,171.52,171.5,0.063]
[1740303209656,11.57428655,171.51,171.5,0.063]
[1740303214969,17.40478655,171.51,171.5,0.063]
[1740303216492,36.05443541,171.51,171.5,0.063]
[1740303227510,37.05443541,171.51,171.5,0.063]
[1740303229087,36.8996427,171.51,171.5,0.063]
[1740303230488,36.8996427,171.51,171.45,0.0001]
[1740303230489,19.64964886,171.5,171.45,0.0001]
[1740303230699,30.22393541,171.46,171.45,0.0001]
[1740303230910,34.52393541,171.46,171.45,0.0001]
[1740303232492,40.35613541,171.46,171.45,0.0001]
[1740303237113,43.30780626,171.46,171.45,0.0001]
[1740303238012,40.35613541,171.46,171.45,0.0001]
[1740303238314,36.05613541,171.46,171.45,0.0001]
[1740303238493,30.22393541,171.46,171.45,0.0001]
[1740303240394,36.05613541,171.46,171.45,0.0001]
[1740303250411,37.05613541,171.46,171.45,0.0001]
[1740303250716,39.99424923,171.46,171.45,0.0001]
[1740303251125,40.99424923,171.46,171.45,0.0001]
[1740303252019,87.29139543,171.46,171.45,0.0001]
[1740303252810,40.99424923,171.46,171.45,0.0001]
[1740303256521,19.64964886,171.45,171.42,5.935e-05]
[1740303256711,32.22393541,171.43,171.42,5.935e-05]
[1740303257627,20.0,171.4,171.39,0.063]
[1740303257809,54.52393541,171.4,171.39,0.063]
[1740303258304,54.52393541,171.4,171.37,0.13175811]
[1740303258305,1.0,171.38,171.37,0.13175811]
[1740303258509,37.05883541,171.38,171.37,0.13175811]
[1740303259229,36.05883541,171.38,171.37,0.13175811]
[1740303259931,37.05883541,171.38,171.37,0.13175811]
[1740303261715,36.05883541,171.38,171.37,0.13175811]
[1740303261917,37.05883541,171.38,171.37,0.13175811]
[1740303267220,38.05883541,171.38,171.37,0.13175811]
[1740303267422,37.05883541,171.38,171.37,0.13175811]
[1740303269109,36.05883541,171.38,171.37,0.13175811]
[1740303275220,40.35883541,171.38,171.37,0.13175811]
[1740303280227,36.05883541,171.38,171.37,0.13175811]
[1740303291167,17.40918655,171.38,171.37,0.13175811]
[1740303291480,36.05883541,171.38,171.37,0.13175811]
[1740303303865,40.35883541,171.38,171.37,5.811e-05]
[1740303306199,28.78454886,171.38,171.37,5.811e-05]
[1740303306389,40.35883541,171.38,171.37,5.811e-05]
[1740303315973,40.35883541,171.38,171.32,6.411]
[1740303315974,18.64964886,171.34,171.32,6.411]
[1740303316278,11.57428655,171.33,171.32,6.411]
[1740303317090,11.57428655,171.34,171.32,6.411]
[1740303318081,11.57428655,171.33,171.32,6.411]
[1740303333788,11.57428655,171.33,171.3,1.5369]
[1740303333992,11.57428655,171.32,171.27,12.0932]
[1740303334800,11.57428655,171.31,171.27,6.2546]
[1740303335007,11.57428655,171.3,171.27,6.2546]
[1740303336012,5.8371,171.32,171.27,0.063]
[1740303336013,11.57428655,171.29,171.27,0.063]
[1740303336208,92.57428655,171.28,171.27,0.063]
[1740303337121,81.0,171.28,171.27,0.063]
[1740303337321,11.57428655,171.28,171.27,0.063]
[1740303337523,47.86835184,171.28,171.27,0.063]
[1740303338027,36.17815035,171.28,171.27,0.063]
[1740303338322,37.17815035,171.28,171.27,0.063]
[1740303338640,83.93895631,171.28,171.27,0.063]
[1740303339807,37.17815035,171.28,171.27,0.063]
[1740303340414,83.93895631,171.28,171.27,0.063]
[1740303341836,37.17815035,171.28,171.27,0.063]
[1740303343222,83.93895631,171.28,171.27,0.063]
[1740303344206,37.17815035,171.28,171.27,0.063]
[1740303346149,83.93895631,171.28,171.27,0.063]
[1740303346335,19.64964886,171.27,171.19,6.2546]
[1740303346511,11.69020149,171.22,171.19,6.2546]
[1740303347031,11.69020149,171.22,171.19,12.096]
[1740303347230,11.69020149,171.23,171.19,6.2546]
[1740303347436,11.69020149,171.23,171.19,12.096]
[1740303348342,11.69020149,171.21,171.19,6.2546]
[1740303348837,81.0,171.2,171.19,6.2546]
[1740303349337,92.69020149,171.2,171.19,6.2546]
[1740303349523,81.0,171.2,171.19,6.2546]
[1740303351242,81.0,171.2,171.19,12.096]
[1740303361763,81.0,171.2,171.19,6.2546]
[1740303361958,81.0,171.2,171.19,0.063]
[1740303364556,11.69020149,171.22,171.19,0.063]
[1740303365268,11.69020149,171.21,171.19,0.063]
[1740303365566,11.69020149,171.22,171.19,0.063]
[1740303369768,11.69020149,171.23,171.19,0.063]
[1740303369953,18.64964886,171.24,171.19,0.063]
[1740303369954,11.69020149,171.22,171.19,0.063]
[1740303370673,24.48934886,171.24,171.19,0.063]
[1740303370971,11.69020149,171.22,171.19,0.063]
[1740303372365,11.69020149,171.2,171.19,0.063]
[1740303376968,11.69020149,171.22,171.19,0.063]
[1740303377859,30.33985035,171.22,171.19,0.063]
[1740303378165,11.69020149,171.21,171.19,0.063]
[1740303381172,18.64964886,171.22,171.19,0.063]
[1740303387988,30.33985035,171.22,171.19,0.063]
[1740303388593,11.69020149,171.23,171.19,0.063]
[1740303389867,18.64964886,171.22,171.19,0.063]
[1740303390697,0.03,171.27,171.21,11.69020149]
[1740303390887,4.3,171.26,171.22,11.69020149]
[1740303391395,18.67964886,171.27,171.22,11.69020149]
[1740303392878,18.67964886,171.27,171.22,17.53030149]
[1740303394800,81.0,171.26,171.22,17.53030149]
[1740303395399,81.0,171.26,171.22,17.59330149]
[1740303396371,81.0,171.25,171.22,17.59330149]
[1740303396576,81.0,171.25,171.24,11.69020149]
[1740303397073,81.0,171.25,171.24,18.09400149]
[1740303397490,0.03,171.27,171.25,5.8394]
[1740303397699,0.03,171.27,171.26,11.69020149]
[1740303399112,0.03,171.27,171.26,17.52920149]
[1740303421148,0.03,171.27,171.26,11.69020149]
[1740303421951,0.03,171.27,171.25,11.69020149]
[1740303422555,0.03,171.27,171.26,11.69020149]
[1740303423959,0.03,171.27,171.26,17.52920149]
[1740303426775,0.03,171.27,171.26,11.69020149]
[1740303426948,0.03,171.27,171.25,11.69020149]
[1740303427152,0.03,171.27,171.24,11.69020149]
[1740303428152,0.03,171.27,171.24,5.8397]
[1740303428357,0.03,171.27,171.25,11.69020149]
[1740303429747,0.03,171.27,171.25,17.52950149]
[1740303429948,0.03,171.27,171.25,17.59250149]
[1740303432087,0.03,171.27,171.26,11.69020149]
[1740303433552,0.03,171.27,171.26,58.45100745]
[1740303433754,81.0,171.36,171.28,1.5178]
[1740303433964,81.0,171.35,171.33,11.69020149]
[1740303434169,81.0,171.34,171.31,11.69020149]
[1740303434465,81.0,171.34,171.28,1.5178]
[1740303434656,30.33985035,171.35,171.29,11.69020149]
[1740303434657,81.0,171.33,171.29,11.69020149]
[1740303434866,11.69020149,171.32,171.27,11.69020149]
[1740303435173,81.0,171.33,171.27,11.69020149]
[1740303435379,11.69020149,171.32,171.26,11.69020149]
[1740303435744,5.8377,171.3,171.26,11.69020149]
[1740303435940,81.0,171.29,171.26,11.69020149]
[1740303436159,81.0,171.28,171.25,11.75320149]
[1740303436354,81.0,171.27,171.25,0.063]
[1740303439383,81.0,171.26,171.25,0.063]
[1740303439565,17.52900149,171.27,171.25,0.063]
[1740303439874,30.33985035,171.26,171.25,0.063]
[1740303440094,36.17885035,171.26,171.25,0.063]
[1740303440553,24.48864886,171.26,171.25,0.063]
[1740303441980,36.17885035,171.26,171.25,0.063]
[1740303442396,37.17885035,171.26,171.25,0.063]
[1740303442562,18.64964886,171.24,171.22,0.063]
[1740303442866,34.63985035,171.23,171.22,0.063]
[1740303443380,37.21325035,171.23,171.22,0.063]
[1740303444100,43.05325035,171.23,171.22,0.063]
[1740303444962,42.05325035,171.23,171.22,0.063]
[1740303445165,36.21325035,171.23,171.22,0.063]
[1740303446888,42.05325035,171.23,171.22,0.063]
[1740303451017,43.05325035,171.23,171.22,0.063]
[1740303453191,19.64964886,171.22,171.19,0.063]
[1740303453416,30.33985035,171.2,171.19,0.063]
[1740303454415,36.18095035,171.2,171.19,0.063]
[1740303462614,39.05707443,171.2,171.19,0.063]
[1740303464194,24.49074886,171.2,171.19,0.063]
[1740303465205,18.64964886,171.2,171.19,0.063]
[1740303468202,18.64964886,171.2,171.19,11.75320149]
[1740303468831,18.64964886,171.2,171.19,0.063]
[1740303476834,24.49074886,171.2,171.19,0.063]
[1740303477931,18.64964886,171.2,171.19,0.063]
[1740303483347,0.03,171.22,171.19,0.063]
[1740303483718,18.67964886,171.22,171.19,0.063]
[1740303484725,0.03,171.22,171.19,0.063]
[1740303485163,0.03,171.22,171.19,11.75320149]
[1740303485376,0.03,171.22,171.21,11.69020149]
[1740303487230,0.03,171.22,171.19,0.063]
[1740303487231,0.03,171.22,171.2,11.69020149]
[1740303487658,0.03,171.22,171.19,11.75320149]
[1740303488143,0.03,171.22,171.19,17.59460149]
[1740303488469,0.03,171.22,171.2,11.69020149]
[1740303488883,0.03,171.22,171.21,11.69020149]
[1740303489374,81.03,171.22,171.21,17.53090149]
[1740303490562,81.03,171.22,171.21,25.08040149]
[1740303490767,0.03,171.22,171.21,25.08040149]
[1740303493577,0.03,171.22,171.21,13.3902]
[1740303493756,0.03,171.22,171.21,25.08040149]
[1740303493959,0.03,171.22,171.21,19.23970149]
[1740303494166,0.03,171.22,171.21,17.71240149]
[1740303495272,81.03,171.22,171.21,17.71240149]
[1740303496281,81.03,171.22,171.21,23.55310149]
[1740303499249,0.03,171.22,171.21,23.55310149]
[1740303506478,0.03,171.22,171.21,17.53090149]
[1740303511205,0.03,171.22,171.21,17.59390149]
[1740303511396,0.03,171.22,171.21,11.75320149]
[1740303530942,81.03,171.22,171.21,11.75320149]
[1740303531829,81.03,171.22,171.21,17.59390149]
[1740303532328,0.03,171.22,171.21,17.59390149]
[1740303540656,81.0,171.26,171.22,8.7266]
[1740303540829,0.03,171.27,171.25,11.69020149]
[1740303541022,0.03,171.27,171.22,8.7266]
[1740303541023,0.03,171.27,171.26,11.69020149]
[1740303541226,0.03,171.27,171.26,17.52920149]
[1740303542029,0.0001,171.27,171.26,65.29000745]
[1740303542229,0.0001,171.27,171.26,72.43430745]
[1740303543347,0.0001,171.27,171.26,24.67350149]
[1740303543532,0.0001,171.27,171.26,25.67350149]
[1740303545442,0.0001,171.27,171.26,72.43430745]
[1740303545962,0.0001,171.27,171.26,72.49730745]
[1740303548543,0.0001,171.27,171.26,75.40572091]
[1740303549770,0.0001,171.27,171.26,28.64491495]
[1740303550064,0.0001,171.27,171.26,75.40572091]
[1740303553840,0.0001,171.27,171.26,74.40572091]
[1740303555987,81.0,171.34,171.29,20.0]
[1740303556153,0.03,171.37,171.33,12.69020149]
[1740303556509,0.03,171.37,171.36,11.69020149]
[1740303559877,0.03,171.37,171.35,11.69020149]
[1740303560287,0.03,171.37,171.36,11.69020149]
[1740303565280,0.03,171.37,171.36,82.93625631]
[1740303566066,0.03,171.37,171.36,11.69020149]
[1740303568994,0.03,171.37,171.36,11.75320149]
[1740303574596,0.03,171.37,171.36,58.51400745]
[1740303574992,0.03,171.37,171.36,11.75320149]
[1740303576618,0.03,171.39,171.38,20.0]
[1740303576916,0.03,171.39,171.38,31.69020149]
[1740303577122,0.03,171.39,171.38,32.56507511]
[1740303577917,0.03,171.39,171.38,38.39997511]
[1740303578216,0.03,171.39,171.38,37.52510149]
[1740303579318,0.03,171.39,171.38,56.17475035]
[1740303579500,0.03,171.4,171.39,18.64964886]
[1740303579702,0.03,171.4,171.39,36.17445035]
[1740303579919,0.03,171.41,171.4,19.64964886]
[1740303580098,0.03,171.41,171.4,31.33985035]
[1740303580298,0.03,171.45,171.43,20.0]
[1740303580502,0.03,171.45,171.44,11.69020149]
[1740303583019,0.03,171.45,171.44,31.69020149]
[1740303585323,0.03,171.45,171.44,11.69020149]
[1740303585533,0.03,171.45,171.43,11.69020149]
[1740303587400,0.03,171.45,171.42,11.69020149]
[1740303587630,0.03,171.45,171.41,11.69020149]
[1740303589930,11.69020149,171.42,171.36,0.063]
[1740303590113,11.69020149,171.4,171.36,0.063]
[1740303591428,5.8346,171.39,171.36,0.063]
[1740303591957,17.52480149,171.39,171.36,0.063]
[1740303596031,11.69020149,171.38,171.36,0.063]
[1740303596248,17.16790149,171.37,171.36,0.063]
[1740303596649,11.69020149,171.37,171.36,0.063]
[1740303596849,11.69020149,171.37,171.36,0.0001]
[1740303597031,30.33985035,171.37,171.36,0.0001]
[1740303598147,36.17515035,171.37,171.36,0.0001]
[1740303602269,17.52550149,171.37,171.36,0.0001]
[1740303605680,13.34040149,171.38,171.36,0.0001]
[1740303605973,4.3,171.38,171.36,0.0001]
[1740303608874,11.69020149,171.39,171.36,0.0001]
[1740303609049,17.52490149,171.39,171.36,0.0001]
[1740303610079,11.69020149,171.37,171.36,0.0001]
[1740303610285,17.52550149,171.37,171.36,0.0001]
[1740303616384,17.55550149,171.37,171.36,0.0001]
[1740303617453,41.19462044,171.37,171.36,0.0001]
[1740303617679,89.4863264,171.37,171.36,0.0001]
[1740303619765,91.79342973,171.37,171.36,0.0001]
[1740303620570,20.0,171.33,171.26,0.063]
[1740303620769,11.69020149,171.3,171.26,0.063]
[1740303621873,17.52780149,171.31,171.26,0.063]
[1740303622787,11.69020149,171.3,171.26,0.063]
[1740303623575,17.52820149,171.29,171.26,0.063]
[1740303624101,81.0,171.28,171.26,0.063]
[1740303625587,81.0,171.28,171.27,11.69020149]
[1740303628097,81.0,171.28,171.27,17.52890149]
[1740303628995,81.0,171.31,171.27,17.52890149]
[1740303630792,81.0,171.31,171.28,11.69020149]
[1740303631200,81.0,171.31,171.27,5.8387]
[1740303632499,81.0,171.31,171.27,11.69020149]
[1740303634484,86.8374,171.31,171.26,0.063]
[1740303634871,81.0,171.3,171.26,0.063]
[1740303636199,92.69020149,171.3,171.26,0.063]
[1740303636805,98.52800149,171.3,171.26,0.063]
[1740303637003,11.69020149,171.28,171.26,0.063]
[1740303637207,11.69020149,171.27,171.26,0.063]
[1740303638290,11.69020149,171.29,171.26,0.063]
[1740303638985,98.52790149,171.3,171.26,0.063]
[1740303639190,92.69020149,171.3,171.26,0.063]
[1740303640609,98.52790149,171.3,171.26,0.063]
[1740303640801,81.0,171.29,171.26,0.063]
[1740303641193,92.69020149,171.29,171.26,0.063]
[1740303641389,11.69020149,171.28,171.26,0.063]
[1740303641588,11.69020149,171.27,171.26,0.063]
[1740303646312,11.69020149,171.28,171.26,0.063]
[1740303647310,11.69020149,171.3,171.26,0.063]
[1740303648000,11.69020149,171.31,171.26,0.063]
[1740303649997,15.99020149,171.32,171.26,18.34230149]
[1740303650312,15.99020149,171.34,171.27,11.69020149]
[1740303650525,15.99020149,171.34,171.29,11.69020149]
[1740303650725,81.0,171.3,171.29,11.69020149]
[1740303651702,81.0,171.3,171.29,17.52820149]
[1740303655824,81.0,171.34,171.29,17.52820149]
[1740303656030,81.0,171.34,171.32,11.69020149]
[1740303656914,81.03,171.36,171.33,11.69020149]
[1740303657339,81.03,171.36,171.34,11.69020149]
[1740303657901,81.03,171.36,171.33,11.69020149]
[1740303658106,81.03,171.36,171.34,5.8363]
[1740303660537,81.03,171.36,171.34,17.52650149]
[1740303661430,81.03,171.36,171.34,5.8363]
[1740303661625,0.03,171.36,171.34,5.8363]
[1740303662237,0.03,171.36,171.33,5.8365]
[1740303663843,0.03,171.36,171.32,12.0633]
[1740303665528,0.03,171.36,171.32,23.75350149]
[1740303665921,0.03,171.36,171.33,11.69020149]
[1740303667546,0.03,171.36,171.35,11.69020149]
[1740303669042,0.03,171.36,171.35,17.52620149]
[1740303673350,0.03,171.36,171.35,17.52620149]
[1740303678957,0.03,171.37,171.35,17.52620149]
[1740303679153,0.03,171.4,171.36,58.45100745]
[1740303679457,0.03,171.4,171.39,11.69020149]
[1740303680554,0.03,171.4,171.39,17.52480149]
[1740303681562,0.03,171.4,171.39,11.69020149]
[1740303681734,0.03,171.4,171.37,24.02850149]
[1740303682131,0.03,171.4,171.38,11.69020149]
[1740303684249,0.03,171.4,171.37,18.19330149]
[1740303685362,0.03,171.4,171.37,11.69020149]
[1740303688071,0.03,171.4,171.37,17.52540149]
[1740303688970,0.03,171.4,171.38,11.69020149]
[1740303691263,0.03,171.4,171.37,11.69020149]
[1740303692078,0.03,171.4,171.36,17.52570149]
[1740303695553,0.03,171.4,171.37,11.69020149]
[1740303696378,0.03,171.4,171.37,17.52530149]
[1740303699158,0.03,171.4,171.38,11.69020149]
[1740303699358,0.03,171.4,171.39,11.69020149]
[1740303700378,0.03,171.4,171.39,17.52480149]
[1740303704687,0.03,171.4,171.39,24.13190149]
[1740303710380,0.03,171.45,171.39,24.13190149]
[1740303710585,0.03,171.45,171.43,11.69020149]
[1740303711206,0.03,171.45,171.44,11.69020149]
[1740303711490,0.03,171.45,171.44,17.52310149]
[1740303713582,0.03,171.45,171.42,5.8336]
[1740303713810,0.03,171.45,171.43,11.69020149]
[1740303714803,0.03,171.45,171.44,5.8329]
[1740303715707,0.03,171.45,171.44,17.52310149]
[1740303731624,0.03,171.45,171.42,5.8336]
[1740303731822,0.03,171.45,171.43,11.69020149]
[1740303733039,0.03,171.45,171.43,17.52320149]
[1740303733639,0.03,171.45,171.43,5.833]
[1740303734031,0.03,171.45,171.42,11.69020149]
[1740303734218,0.03,171.45,171.41,99.42410149]
[1740303734907,0.03,171.45,171.41,81.9]
[1740303735636,0.03,171.45,171.41,87.7339]
[1740303735835,0.03,171.45,171.41,5.8339]
[1740303736139,0.03,171.45,171.4,11.75320149]
[1740303736451,11.72020149,171.45,171.4,0.063]
[1740303738222,0.03,171.45,171.4,11.75320149]
[1740303738522,0.03,171.45,171.41,11.69020149]
[1740303740647,0.03,171.45,171.42,5.8336]
[1740303745741,0.03,171.45,171.42,17.52380149]
[1740303748247,0.03,171.45,171.44,11.69020149]
[1740303749536,0.03,171.45,171.44,17.52310149]
[1740303752849,0.03,171.46,171.44,17.52310149]
[1740303753053,0.03,171.5,171.45,11.69020149]
[1740303753237,0.03,171.5,171.49,11.69020149]
[1740303754140,0.03,171.5,171.48,11.69020149]
[1740303754341,0.03,171.5,171.47,11.69020149]
[1740303755461,0.03,171.5,171.47,5.8316]
[1740303756949,0.03,171.5,171.47,17.52180149]
[1740303757152,0.03,171.5,171.48,11.69020149]
[1740303758545,0.03,171.5,171.49,17.52140149]
[1740303762250,0.03,171.5,171.49,5.8312]
[1740303763661,0.03,171.5,171.49,17.52140149]
[1740303773176,0.0001,171.5,171.49,17.52140149]
[1740303774172,0.0001,171.5,171.49,18.52140149]
[1740303774565,0.0001,171.5,171.49,100.42140149]
[1740303774948,0.0001,171.5,171.49,101.42140149]
[1740303777278,0.0001,171.5,171.49,107.59660149]
[1740303779882,0.0001,171.5,171.49,126.24625035]
[1740303780084,0.03,171.54,171.53,11.69020149]
[1740303781970,0.03,171.54,171.53,17.52000149]
[1740303817612,0.0001,171.54,171.53,17.52000149]
[1740303817817,0.03,171.55,171.53,66.28080745]
[1740303817818,0.0001,171.55,171.53,66.28080745]
[1740303818014,0.0001,171.55,171.54,58.45100745]
[1740303818927,0.0001,171.55,171.54,64.28050745]
[1740303820235,0.0001,171.55,171.54,17.51970149]
[1740303827949,0.0001,171.55,171.54,17.51970149]
[1740303830154,0.0001,171.55,171.54,17.58270149]
[1740303837244,0.0001,171.55,171.54,65.34350745]
[1740303837750,0.0001,171.57,171.56,20.0]
[1740303837955,0.0001,171.57,171.56,31.69020149]
[1740303839279,0.0001,171.57,171.56,37.51900149]
[1740303842752,0.0001,171.57,171.56,5.8288]
[1740303843773,0.0001,171.57,171.54,5.8922]
[1740303844276,0.0001,171.57,171.54,17.58240149]
[1740303851090,0.0001,171.57,171.55,11.69020149]
[1740303852171,0.0001,171.57,171.56,11.69020149]
[1740303853499,0.0001,171.57,171.56,17.51900149]
[1740303858190,0.0001,171.57,171.56,5.8288]
[1740303858891,0.0001,171.57,171.54,11.75320149]
[1740303859498,0.0001,171.57,171.54,0.063]
[1740303859686,11.69030149,171.57,171.54,0.063]
[1740303863099,1.5146,171.56,171.54,0.063]
[1740303863683,82.5146,171.56,171.54,0.063]
[1740303872708,94.20480149,171.56,171.54,0.063]
[1740303875009,81.0,171.55,171.54,0.063]
[1740303875722,92.69020149,171.55,171.54,0.063]
[1740303875923,98.51940149,171.55,171.54,0.063]
[1740303877496,36.16905035,171.55,171.54,0.063]
[1740303880423,39.13680518,171.55,171.54,0.063]
[1740303909241,18.64964886,171.55,171.54,0.063]
[1740303909462,37.51880149,171.57,171.54,0.063]
[1740303909750,18.64964886,171.56,171.54,0.063]
[1740303910123,11.69030149,171.57,171.54,0.063]
[1740303910324,4.2801,171.57,171.54,0.063]
[1740303910537,0.0001,171.57,171.54,0.063]
[1740303910727,0.0001,171.57,171.54,11.75320149]
[1740303911138,81.0,171.56,171.54,11.75320149]
[1740303915345,0.0001,171.57,171.54,17.58250149]
[1740303915538,0.0001,171.57,171.56,11.69020149]
[1740303916150,0.0001,171.57,171.56,18.23420149]
[1740303917335,0.0001,171.57,171.56,24.06300149]
[1740303923766,0.0001,171.57,171.56,6.544]
[1740303924263,0.0001,171.57,171.56,24.06300149]
[1740303924768,0.0001,171.57,171.56,12.3728]
[1740303925471,0.0001,171.57,171.56,24.06300149]
[1740303933466,0.0001,171.57,171.56,25.06300149]
[1740303933858,0.03,171.6,171.59,20.0]
[1740303934177,0.03,171.6,171.59,37.51800149]
[1740303935884,0.03,171.6,171.59,25.8278]
[1740303936179,11.31020149,171.64,171.59,25.8278]
[1740303936982,11.69020149,171.62,171.56,18.29720149]
[1740303937182,11.69020149,171.62,171.57,5.8284]
[1740303937775,11.69020149,171.62,171.56,24.12590149]
[1740303938088,11.69020149,171.61,171.56,12.4357]
[1740303940387,11.69020149,171.61,171.56,0.063]
[1740303940589,11.69020149,171.6,171.56,0.063]
[1740303941075,92.69020149,171.6,171.56,0.063]
[1740303941684,92.69020149,171.59,171.56,0.063]
[1740303941888,11.69020149,171.58,171.56,0.063]
[1740303942088,11.69020149,171.57,171.56,0.063]
[1740303944281,92.69020149,171.58,171.56,0.063]
[1740303947018,0.03,171.57,171.56,0.063]
[1740303949494,11.72020149,171.57,171.56,0.063]
[1740303950496,92.72020149,171.57,171.56,0.063]
[1740303952487,81.03,171.57,171.56,0.063]
[1740303952791,92.72020149,171.57,171.56,0.063]
[1740303953508,17.54870149,171.57,171.56,0.063]
[1740303956000,36.19835035,171.57,171.56,0.063]
[1740303964422,0.03,171.57,171.56,0.063]
[1740303968928,0.03,171.57,171.56,11.75320149]